[Event "*** Titled Tuesday Blitz"]
[Site "Chess.com"]
[Date "2021.03.02"]
[Round "8"]
[White "eCztery"]
[Black "LamaChampetre"]
[Result "1-0"]
[WhiteElo "2396"]
[BlackElo "2212"]
[TimeControl "180+1"]
[EndTime "11:25:00 PST"]
[Termination "eCztery won by checkmate"]

1. d4 {[%clk 0:03:00.9]} 1... Nf6 {[%clk 0:02:59.1]} 2. Bg5 {[%clk 0:02:56.4]}
2... Ne4 {[%clk 0:02:57.6]} 3. h4 {[%clk 0:02:54.3]} 3... c5 {[%clk 0:02:53.8]}
4. Nd2 {[%clk 0:02:50.3]} 4... d5 {[%clk 0:02:50]} 5. Nxe4 {[%clk 0:02:49.1]}
5... dxe4 {[%clk 0:02:50.2]} 6. dxc5 {[%clk 0:02:48.3]} 6... Qa5+ {[%clk
0:02:48.5]} 7. Qd2 {[%clk 0:02:42.6]} 7... Qxc5 {[%clk 0:02:48.5]} 8. O-O-O
{[%clk 0:02:42.1]} 8... Nc6 {[%clk 0:02:48.2]} 9. e3 {[%clk 0:02:42.2]} 9... Bg4
{[%clk 0:02:40]} 10. Be2 {[%clk 0:02:19.9]} 10... Be6 {[%clk 0:02:36.5]} 11. Nh3
{[%clk 0:01:49]} 11... Bxa2 {[%clk 0:02:23]} 12. Qd7# {[%clk 0:01:48.6]} 1-0

[Event "*** Titled Tuesday Blitz"]
[Site "Chess.com"]
[Date "2021.03.02"]
[Round "8"]
[White "davigator"]
[Black "kubal123"]
[Result "1-0"]
[WhiteElo "2397"]
[BlackElo "2224"]
[TimeControl "180+1"]
[EndTime "11:25:36 PST"]
[Termination "davigator won by resignation"]

1. e4 {[%clk 0:03:00.9]} 1... c5 {[%clk 0:02:52.2]} 2. Nf3 {[%clk 0:03:00.6]}
2... e6 {[%clk 0:02:51.2]} 3. d4 {[%clk 0:03:00.5]} 3... cxd4 {[%clk 0:02:52.1]}
4. Nxd4 {[%clk 0:03:01]} 4... Nf6 {[%clk 0:02:51.5]} 5. Nc3 {[%clk 0:03:00.9]}
5... Bb4 {[%clk 0:02:51.9]} 6. Bd3 {[%clk 0:02:55]} 6... e5 {[%clk 0:02:50.5]}
7. Ne2 {[%clk 0:02:53.3]} 7... O-O {[%clk 0:02:49]} 8. O-O {[%clk 0:02:52.8]}
8... Nc6 {[%clk 0:02:35.9]} 9. Bg5 {[%clk 0:02:52.2]} 9... Be7 {[%clk
0:02:33.9]} 10. Qd2 {[%clk 0:02:51.5]} 10... d6 {[%clk 0:02:34]} 11. f3 {[%clk
0:02:49.9]} 11... Be6 {[%clk 0:02:34.1]} 12. Rad1 {[%clk 0:02:48.2]} 12... a6
{[%clk 0:02:18.9]} 13. Be3 {[%clk 0:02:46.8]} 13... b5 {[%clk 0:02:16.6]} 14.
Ng3 {[%clk 0:02:39.2]} 14... b4 {[%clk 0:02:05]} 15. Na4 {[%clk 0:02:27.3]}
15... Qa5 {[%clk 0:01:46.8]} 16. b3 {[%clk 0:02:23.6]} 16... Rfd8 {[%clk
0:01:35.3]} 17. Bb6 {[%clk 0:02:21.8]} 1-0

[Event "*** Titled Tuesday Blitz"]
[Site "Chess.com"]
[Date "2021.03.02"]
[Round "8"]
[White "m_ezat"]
[Black "Vallek86"]
[Result "1-0"]
[WhiteElo "2536"]
[BlackElo "2380"]
[TimeControl "180+1"]
[EndTime "11:26:24 PST"]
[Termination "m_ezat won by checkmate"]

1. d4 {[%clk 0:03:00.9]} 1... c5 {[%clk 0:02:54.6]} 2. c4 {[%clk 0:03:01.8]}
2... cxd4 {[%clk 0:02:54.6]} 3. Nf3 {[%clk 0:03:00.6]} 3... Nc6 {[%clk
0:02:54.5]} 4. Nxd4 {[%clk 0:02:59.3]} 4... Nf6 {[%clk 0:02:53.2]} 5. Nc3 {[%clk
0:02:58.9]} 5... e5 {[%clk 0:02:49.3]} 6. Nxc6 {[%clk 0:02:57.2]} 6... bxc6
{[%clk 0:02:49.5]} 7. Bg5 {[%clk 0:02:54.5]} 7... Bc5 {[%clk 0:02:43]} 8. e3
{[%clk 0:02:53.9]} 8... O-O {[%clk 0:02:42.9]} 9. Be2 {[%clk 0:02:53.1]} 9... d6
{[%clk 0:02:41.8]} 10. O-O {[%clk 0:02:52.9]} 10... Bf5 {[%clk 0:02:37.3]} 11.
Bf3 {[%clk 0:02:50.7]} 11... Rb8 {[%clk 0:02:36.3]} 12. Be4 {[%clk 0:02:47.3]}
12... Be6 {[%clk 0:02:14.6]} 13. b3 {[%clk 0:02:42.1]} 13... Qc8 {[%clk
0:02:09.3]} 14. Bxf6 {[%clk 0:02:41.1]} 14... gxf6 {[%clk 0:02:09.4]} 15. Qf3
{[%clk 0:02:30.9]} 15... Kh8 {[%clk 0:01:41.5]} 16. Qxf6+ {[%clk 0:02:30.1]}
16... Kg8 {[%clk 0:01:41]} 17. Qg5+ {[%clk 0:02:27.8]} 17... Kh8 {[%clk
0:01:40.7]} 18. Qf6+ {[%clk 0:02:12.7]} 18... Kg8 {[%clk 0:01:40.5]} 19. Kh1
{[%clk 0:01:53.3]} 19... Bb6 {[%clk 0:01:33.1]} 20. Rad1 {[%clk 0:01:44.6]}
20... Bd8 {[%clk 0:01:32.1]} 21. Qh6 {[%clk 0:01:45.2]} 21... Be7 {[%clk
0:01:29.6]} 22. Qxh7# {[%clk 0:01:43.3]} 1-0

[Event "*** Titled Tuesday Blitz"]
[Site "Chess.com"]
[Date "2021.03.02"]
[Round "8"]
[White "Caracternin123"]
[Black "Babujj"]
[Result "1-0"]
[WhiteElo "2608"]
[BlackElo "2457"]
[TimeControl "180+1"]
[EndTime "11:26:30 PST"]
[Termination "Caracternin123 won by resignation"]

1. d4 {[%clk 0:03:00.9]} 1... Nf6 {[%clk 0:02:59.9]} 2. Nf3 {[%clk 0:03:01.1]}
2... d5 {[%clk 0:02:57.2]} 3. Bf4 {[%clk 0:03:00.8]} 3... c5 {[%clk 0:02:57.1]}
4. e3 {[%clk 0:03:00.7]} 4... Nc6 {[%clk 0:02:57.6]} 5. Nc3 {[%clk 0:03:01.1]}
5... a6 {[%clk 0:02:55.4]} 6. dxc5 {[%clk 0:03:00.4]} 6... e6 {[%clk 0:02:53.3]}
7. Na4 {[%clk 0:02:55.7]} 7... Qa5+ {[%clk 0:02:41.4]} 8. c3 {[%clk 0:02:55]}
8... Bxc5 {[%clk 0:02:40.7]} 9. b4 {[%clk 0:02:49.1]} 9... Nxb4 {[%clk
0:02:39.9]} 10. Nxc5 {[%clk 0:02:48]} 10... Qxc5 {[%clk 0:02:35.8]} 11. cxb4
{[%clk 0:02:48.2]} 11... Qxb4+ {[%clk 0:02:36.1]} 12. Qd2 {[%clk 0:02:48.5]}
12... Qe7 {[%clk 0:02:35]} 13. Bd3 {[%clk 0:02:48]} 13... O-O {[%clk 0:02:33.8]}
14. Rb1 {[%clk 0:02:47.8]} 14... b5 {[%clk 0:02:34.1]} 15. O-O {[%clk
0:02:47.8]} 15... Bb7 {[%clk 0:02:33.1]} 16. a4 {[%clk 0:02:47.3]} 16... d4
{[%clk 0:02:26.5]} 17. axb5 {[%clk 0:02:44.4]} 17... dxe3 {[%clk 0:02:26.3]} 18.
Bxe3 {[%clk 0:02:42]} 18... axb5 {[%clk 0:02:25.2]} 19. Rxb5 {[%clk 0:02:41.4]}
19... Bxf3 {[%clk 0:02:23.7]} 20. gxf3 {[%clk 0:02:41.1]} 20... Rfd8 {[%clk
0:02:23.6]} 21. Qe2 {[%clk 0:02:37.9]} 21... Ra3 {[%clk 0:02:21.7]} 22. Be4
{[%clk 0:02:37.3]} 22... Nh5 {[%clk 0:02:10.3]} 23. Kh1 {[%clk 0:02:27.6]} 23...
Qh4 {[%clk 0:01:59]} 24. Bg5 {[%clk 0:02:11.8]} 24... Qh3 {[%clk 0:01:56.5]} 25.
Bxd8 {[%clk 0:02:11.3]} 25... Nf4 {[%clk 0:01:56.2]} 26. Rg1 {[%clk 0:02:11.6]}
26... Nxe2 {[%clk 0:01:52.4]} 27. Bf6 {[%clk 0:02:03.1]} 1-0

[Event "*** Titled Tuesday Blitz"]
[Site "Chess.com"]
[Date "2021.03.02"]
[Round "8"]
[White "RamyresCoelho"]
[Black "kidagent"]
[Result "1-0"]
[WhiteElo "2085"]
[BlackElo "2308"]
[TimeControl "180+1"]
[EndTime "11:27:03 PST"]
[Termination "RamyresCoelho won by checkmate"]

1. e4 {[%clk 0:02:59]} 1... c5 {[%clk 0:02:59.9]} 2. Nf3 {[%clk 0:02:54.9]} 2...
d6 {[%clk 0:02:59.5]} 3. d4 {[%clk 0:02:54.9]} 3... cxd4 {[%clk 0:03:00.4]} 4.
Nxd4 {[%clk 0:02:55.8]} 4... Nf6 {[%clk 0:03:00.7]} 5. Nc3 {[%clk 0:02:55.7]}
5... a6 {[%clk 0:03:01.3]} 6. f3 {[%clk 0:02:55.4]} 6... e5 {[%clk 0:03:00.3]}
7. Nb3 {[%clk 0:02:55.5]} 7... Be7 {[%clk 0:03:00.7]} 8. Be3 {[%clk 0:02:56]}
8... O-O {[%clk 0:03:01.1]} 9. Qd2 {[%clk 0:02:56.5]} 9... Be6 {[%clk
0:03:00.1]} 10. O-O-O {[%clk 0:02:56.8]} 10... Qc8 {[%clk 0:03:00.3]} 11. g4
{[%clk 0:02:57.3]} 11... a5 {[%clk 0:02:59.1]} 12. g5 {[%clk 0:02:52.4]} 12...
Nfd7 {[%clk 0:02:58.7]} 13. Nd5 {[%clk 0:02:50.6]} 13... Bd8 {[%clk 0:02:57.8]}
14. h4 {[%clk 0:02:45.3]} 14... a4 {[%clk 0:02:57.2]} 15. Na1 {[%clk 0:02:44]}
15... a3 {[%clk 0:02:54.1]} 16. b3 {[%clk 0:02:43.5]} 16... Nc6 {[%clk
0:02:46.1]} 17. c4 {[%clk 0:02:22]} 17... b5 {[%clk 0:02:43.3]} 18. Nc2 {[%clk
0:02:20.7]} 18... bxc4 {[%clk 0:02:39.5]} 19. Bxc4 {[%clk 0:02:21.6]} 19... Na5
{[%clk 0:02:31.7]} 20. Nxa3 {[%clk 0:01:50.8]} 20... Nxb3+ {[%clk 0:02:30.4]}
21. axb3 {[%clk 0:01:45.7]} 21... Rxa3 {[%clk 0:02:31]} 22. Kb2 {[%clk
0:01:41.4]} 22... Ra8 {[%clk 0:02:23.6]} 23. Ra1 {[%clk 0:01:36.9]} 23... Rxa1
{[%clk 0:02:22.7]} 24. Rxa1 {[%clk 0:01:37.8]} 24... Bxd5 {[%clk 0:02:14.7]} 25.
Qxd5 {[%clk 0:01:29.4]} 25... Be7 {[%clk 0:02:09.4]} 26. h5 {[%clk 0:01:23.3]}
26... Qd8 {[%clk 0:02:06.3]} 27. g6 {[%clk 0:01:19.8]} 27... hxg6 {[%clk
0:02:04.2]} 28. hxg6 {[%clk 0:01:19.1]} 28... Nb6 {[%clk 0:01:57.5]} 29. gxf7+
{[%clk 0:01:19]} 29... Kh7 {[%clk 0:01:56.4]} 30. Rh1+ {[%clk 0:01:19]} 30...
Kg6 {[%clk 0:01:56]} 31. Qe6+ {[%clk 0:01:11.4]} 31... Bf6 {[%clk 0:01:55.7]}
32. Qf5# {[%clk 0:01:09.7]} 1-0

[Event "*** Titled Tuesday Blitz"]
[Site "Chess.com"]
[Date "2021.03.02"]
[Round "8"]
[White "esrosenberg"]
[Black "gisela_roque"]
[Result "1-0"]
[WhiteElo "2181"]
[BlackElo "1754"]
[TimeControl "180+1"]
[EndTime "11:27:20 PST"]
[Termination "esrosenberg won by resignation"]

1. Nf3 {[%clk 0:03:00.9]} 1... Nf6 {[%clk 0:02:58.5]} 2. c4 {[%clk 0:03:00.6]}
2... e6 {[%clk 0:02:57.3]} 3. Nc3 {[%clk 0:03:00.5]} 3... Bb4 {[%clk 0:02:51.6]}
4. g4 {[%clk 0:02:59.9]} 4... h6 {[%clk 0:02:42.4]} 5. Rg1 {[%clk 0:02:57.6]}
5... b6 {[%clk 0:02:33.5]} 6. g5 {[%clk 0:02:54]} 6... hxg5 {[%clk 0:02:32.9]}
7. Rxg5 {[%clk 0:02:53.9]} 7... Bb7 {[%clk 0:02:31.5]} 8. Bg2 {[%clk 0:02:40.2]}
8... Bxc3 {[%clk 0:02:26.4]} 9. dxc3 {[%clk 0:02:39.6]} 9... d6 {[%clk 0:02:27]}
10. Rxg7 {[%clk 0:02:38.8]} 10... Nbd7 {[%clk 0:02:21.5]} 11. Qd2 {[%clk
0:01:46]} 11... Kf8 {[%clk 0:01:54.2]} 12. Qg5 {[%clk 0:01:00]} 12... Rh5 {[%clk
0:01:46.5]} 13. Qg3 {[%clk 0:00:47.2]} 13... Ne4 {[%clk 0:01:43.8]} 14. Rg8+
{[%clk 0:00:30.4]} 14... Ke7 {[%clk 0:01:42.3]} 15. Rxd8 {[%clk 0:00:24.2]}
15... Nxg3 {[%clk 0:01:42.1]} 16. Rxa8 {[%clk 0:00:21.2]} 16... Bxa8 {[%clk
0:01:41.7]} 1-0

[Event "*** Titled Tuesday Blitz"]
[Site "Chess.com"]
[Date "2021.03.02"]
[Round "8"]
[White "ecwinslow"]
[Black "Julianos82"]
[Result "0-1"]
[WhiteElo "2238"]
[BlackElo "2357"]
[TimeControl "180+1"]
[EndTime "11:27:21 PST"]
[Termination "Julianos82 won by resignation"]

1. e4 {[%clk 0:03:00.9]} 1... c5 {[%clk 0:02:17.9]} 2. Nf3 {[%clk 0:02:58.7]}
2... b6 {[%clk 0:02:17.7]} 3. c3 {[%clk 0:02:54.6]} 3... Bb7 {[%clk 0:02:17.5]}
4. Bd3 {[%clk 0:02:53.1]} 4... d5 {[%clk 0:02:17.4]} 5. exd5 {[%clk 0:02:52]}
5... Qxd5 {[%clk 0:02:18.3]} 6. Qe2 {[%clk 0:02:50.6]} 6... e6 {[%clk
0:02:15.7]} 7. O-O {[%clk 0:02:48.4]} 7... Nf6 {[%clk 0:02:15.8]} 8. Na3 {[%clk
0:02:45.9]} 8... Nbd7 {[%clk 0:02:13.9]} 9. Bc4 {[%clk 0:02:38.5]} 9... Qh5
{[%clk 0:02:12.7]} 10. Nb5 {[%clk 0:02:36.3]} 10... O-O-O {[%clk 0:01:58.5]} 11.
Nxa7+ {[%clk 0:02:29.8]} 11... Kb8 {[%clk 0:01:58.5]} 12. Nb5 {[%clk 0:02:29.8]}
12... Bxf3 {[%clk 0:01:37.5]} 13. Qxf3 {[%clk 0:02:27]} 13... Qxf3 {[%clk
0:01:37]} 14. gxf3 {[%clk 0:02:26.8]} 14... Ne5 {[%clk 0:01:34.3]} 15. Be2
{[%clk 0:02:26.2]} 15... Nd3 {[%clk 0:01:32.9]} 16. a4 {[%clk 0:02:17.8]} 16...
Nh5 {[%clk 0:01:24.8]} 17. a5 {[%clk 0:02:04.5]} 17... bxa5 {[%clk 0:01:23.1]}
18. Bxd3 {[%clk 0:01:56.3]} 18... Rxd3 {[%clk 0:01:24]} 19. Rxa5 {[%clk
0:01:55.8]} 19... Nf4 {[%clk 0:01:20.9]} 20. Na3 {[%clk 0:01:48.1]} 20... Bd6
{[%clk 0:01:15.8]} 21. Nc4 {[%clk 0:01:47.4]} 21... Bc7 {[%clk 0:01:15.8]} 22.
Rxc5 {[%clk 0:01:45.1]} 22... h5 {[%clk 0:01:09.8]} 23. b4 {[%clk 0:01:42.5]}
23... Rh6 {[%clk 0:01:09.8]} 24. b5 {[%clk 0:01:37.8]} 24... Kb7 {[%clk
0:01:04.9]} 25. Rg5 {[%clk 0:01:25.1]} 25... Nh3+ {[%clk 0:01:03.8]} 26. Kg2
{[%clk 0:01:21.6]} 26... Nxg5 {[%clk 0:01:04.7]} 0-1

[Event "*** Titled Tuesday Blitz"]
[Site "Chess.com"]
[Date "2021.03.02"]
[Round "8"]
[White "Deepweb2020"]
[Black "tusplingher"]
[Result "1-0"]
[WhiteElo "2411"]
[BlackElo "2260"]
[TimeControl "180+1"]
[EndTime "11:27:23 PST"]
[Termination "Deepweb2020 won by resignation"]

1. d4 {[%clk 0:03:00.9]} 1... Nf6 {[%clk 0:02:59.5]} 2. c4 {[%clk 0:02:58.7]}
2... c5 {[%clk 0:02:59.3]} 3. Nf3 {[%clk 0:02:57.6]} 3... cxd4 {[%clk 0:02:59]}
4. Nxd4 {[%clk 0:02:57.9]} 4... Nc6 {[%clk 0:02:59.2]} 5. g3 {[%clk 0:02:53.8]}
5... d6 {[%clk 0:02:56.1]} 6. Bg2 {[%clk 0:02:53.9]} 6... Bd7 {[%clk 0:02:55.8]}
7. O-O {[%clk 0:02:53.5]} 7... g6 {[%clk 0:02:55.6]} 8. Nc3 {[%clk 0:02:52.8]}
8... Bg7 {[%clk 0:02:55.3]} 9. b3 {[%clk 0:02:47.9]} 9... O-O {[%clk 0:02:54.9]}
10. Bb2 {[%clk 0:02:44.6]} 10... Nxd4 {[%clk 0:02:54.5]} 11. Qxd4 {[%clk
0:02:44.1]} 11... Bc6 {[%clk 0:02:54.4]} 12. Nd5 {[%clk 0:02:44.2]} 12... Bxd5
{[%clk 0:02:37.2]} 13. Bxd5 {[%clk 0:02:42.6]} 13... Qd7 {[%clk 0:02:17.1]} 14.
Rfd1 {[%clk 0:02:36.5]} 14... Rad8 {[%clk 0:01:50.3]} 15. Qxa7 {[%clk
0:02:31.3]} 15... Nxd5 {[%clk 0:01:13.9]} 16. Bxg7 {[%clk 0:02:29.4]} 16... Kxg7
{[%clk 0:01:07.4]} 17. Rxd5 {[%clk 0:02:26.8]} 17... Qc6 {[%clk 0:01:05]} 18.
Qd4+ {[%clk 0:02:23.6]} 18... f6 {[%clk 0:01:04.9]} 19. Qd2 {[%clk 0:02:22]}
19... Ra8 {[%clk 0:01:03.3]} 20. a4 {[%clk 0:02:17.5]} 20... Rfd8 {[%clk
0:01:00.1]} 21. h4 {[%clk 0:02:17.4]} 21... Ra6 {[%clk 0:00:51.4]} 22. c5 {[%clk
0:02:15.8]} 22... Raa8 {[%clk 0:00:28.4]} 23. cxd6 {[%clk 0:02:15.6]} 23... exd6
{[%clk 0:00:28.2]} 24. Rc1 {[%clk 0:02:15.1]} 24... Qb6 {[%clk 0:00:20.5]} 25.
Rb5 {[%clk 0:02:14.8]} 25... Qa6 {[%clk 0:00:20.5]} 26. Rc7+ {[%clk 0:02:12.3]}
26... Kh8 {[%clk 0:00:18.8]} 27. Qh6 {[%clk 0:02:11.9]} 1-0

[Event "*** Titled Tuesday Blitz"]
[Site "Chess.com"]
[Date "2021.03.02"]
[Round "8"]
[White "FeketeBarika"]
[Black "Moon_stone123"]
[Result "0-1"]
[WhiteElo "2282"]
[BlackElo "2515"]
[TimeControl "180+1"]
[EndTime "11:27:25 PST"]
[Termination "Moon_stone123 won by resignation"]

1. Nf3 {[%clk 0:02:20.6]} 1... Nf6 {[%clk 0:02:58.7]} 2. g3 {[%clk 0:02:21.5]}
2... g6 {[%clk 0:02:58.3]} 3. Bg2 {[%clk 0:02:22.4]} 3... Bg7 {[%clk 0:02:57.8]}
4. O-O {[%clk 0:02:22]} 4... O-O {[%clk 0:02:58.7]} 5. c4 {[%clk 0:02:21.8]}
5... d6 {[%clk 0:02:58.5]} 6. Nc3 {[%clk 0:02:22.7]} 6... e5 {[%clk 0:02:56.4]}
7. d3 {[%clk 0:02:22.8]} 7... Re8 {[%clk 0:02:55.9]} 8. Rb1 {[%clk 0:02:21.1]}
8... a5 {[%clk 0:02:55.1]} 9. a3 {[%clk 0:02:20.6]} 9... e4 {[%clk 0:02:55.1]}
10. dxe4 {[%clk 0:02:20.1]} 10... Nxe4 {[%clk 0:02:55.4]} 11. Nxe4 {[%clk
0:02:20.8]} 11... Rxe4 {[%clk 0:02:56.1]} 12. Nd2 {[%clk 0:02:21.2]} 12... Re8
{[%clk 0:02:56.7]} 13. b4 {[%clk 0:02:21.2]} 13... axb4 {[%clk 0:02:54.9]} 14.
axb4 {[%clk 0:02:22.1]} 14... Bf5 {[%clk 0:02:46.8]} 15. Rb3 {[%clk 0:02:19.9]}
15... Ra1 {[%clk 0:02:40.3]} 16. Bxb7 {[%clk 0:02:18.1]} 16... Nd7 {[%clk
0:02:28.2]} 17. Bc6 {[%clk 0:02:16.3]} 17... Qe7 {[%clk 0:02:18.8]} 18. Nf3
{[%clk 0:02:05.9]} 18... Qxe2 {[%clk 0:02:14.4]} 19. Qxe2 {[%clk 0:02:04.2]}
19... Rxe2 {[%clk 0:02:15.3]} 20. Be3 {[%clk 0:01:52.7]} 20... Rxf1+ {[%clk
0:02:03.5]} 21. Kxf1 {[%clk 0:01:53.6]} 21... Rc2 {[%clk 0:02:01.6]} 22. c5
{[%clk 0:01:46.9]} 22... dxc5 {[%clk 0:01:58.4]} 23. bxc5 {[%clk 0:01:47.8]}
23... Bc3 {[%clk 0:01:40.6]} 24. Bh6 {[%clk 0:01:42.4]} 24... Bh3+ {[%clk
0:01:36.1]} 25. Kg1 {[%clk 0:01:38.9]} 25... Nf8 {[%clk 0:01:12.5]} 26. Ne1
{[%clk 0:01:23.6]} 26... Bxe1 {[%clk 0:01:09.4]} 27. Rb8 {[%clk 0:01:22.4]}
27... Bxf2+ {[%clk 0:01:04.8]} 28. Kh1 {[%clk 0:01:22.5]} 28... Bxc5 {[%clk
0:01:05.4]} 0-1

[Event "*** Titled Tuesday Blitz"]
[Site "Chess.com"]
[Date "2021.03.02"]
[Round "8"]
[White "Zhigalko_Sergei"]
[Black "horripile"]
[Result "1-0"]
[WhiteElo "2909"]
[BlackElo "2710"]
[TimeControl "180+1"]
[EndTime "11:27:49 PST"]
[Termination "Zhigalko_Sergei won by resignation"]

1. e4 {[%clk 0:03:00]} 1... c5 {[%clk 0:02:58.1]} 2. Nf3 {[%clk 0:03:00.2]} 2...
Nc6 {[%clk 0:02:58.3]} 3. c3 {[%clk 0:02:59.8]} 3... d5 {[%clk 0:02:53.4]} 4.
exd5 {[%clk 0:03:00]} 4... Qxd5 {[%clk 0:02:54.3]} 5. d4 {[%clk 0:03:00.9]} 5...
e6 {[%clk 0:02:54.3]} 6. Na3 {[%clk 0:02:59.6]} 6... Qd8 {[%clk 0:02:51.8]} 7.
Nc2 {[%clk 0:02:56.1]} 7... Nf6 {[%clk 0:02:51.6]} 8. Bd3 {[%clk 0:02:56.2]}
8... Be7 {[%clk 0:02:49]} 9. O-O {[%clk 0:02:56.4]} 9... O-O {[%clk 0:02:47.3]}
10. Re1 {[%clk 0:02:56.7]} 10... b6 {[%clk 0:02:45.9]} 11. Qe2 {[%clk 0:02:47]}
11... Bb7 {[%clk 0:02:45.7]} 12. dxc5 {[%clk 0:02:44.8]} 12... Bxc5 {[%clk
0:02:44.8]} 13. Bg5 {[%clk 0:02:44.4]} 13... Be7 {[%clk 0:02:25.4]} 14. Bh4
{[%clk 0:02:27.8]} 14... Nd5 {[%clk 0:02:16.7]} 15. Bg3 {[%clk 0:02:24.1]} 15...
Bf6 {[%clk 0:02:07.3]} 16. Rad1 {[%clk 0:02:21.8]} 16... Qc8 {[%clk 0:02:07.5]}
17. h4 {[%clk 0:02:11.9]} 17... Rd8 {[%clk 0:01:51.1]} 18. h5 {[%clk 0:01:59.1]}
18... Nde7 {[%clk 0:01:43.8]} 19. Ne3 {[%clk 0:01:42.2]} 19... Nf5 {[%clk
0:01:07.1]} 20. Bxf5 {[%clk 0:01:41.3]} 20... exf5 {[%clk 0:01:07.1]} 21. Nd5
{[%clk 0:01:41.8]} 21... Bd4 {[%clk 0:00:53.6]} 22. Rxd4 {[%clk 0:01:20.7]}
22... Nxd4 {[%clk 0:00:50.2]} 23. Ne7+ {[%clk 0:01:21]} 23... Kh8 {[%clk
0:00:50.8]} 24. Nxd4 {[%clk 0:01:20.3]} 24... Qd7 {[%clk 0:00:39.9]} 25. h6
{[%clk 0:01:17.5]} 1-0

[Event "*** Titled Tuesday Blitz"]
[Site "Chess.com"]
[Date "2021.03.02"]
[Round "8"]
[White "Chandradi"]
[Black "DLR7"]
[Result "0-1"]
[WhiteElo "2363"]
[BlackElo "2637"]
[TimeControl "180+1"]
[EndTime "11:27:52 PST"]
[Termination "DLR7 won by resignation"]

1. c4 {[%clk 0:03:00.9]} 1... e5 {[%clk 0:02:59.1]} 2. g3 {[%clk 0:03:00.4]}
2... Nc6 {[%clk 0:02:59]} 3. Bg2 {[%clk 0:03:00.3]} 3... Nf6 {[%clk 0:02:58.7]}
4. Nc3 {[%clk 0:03:00]} 4... Bb4 {[%clk 0:02:54.7]} 5. Nd5 {[%clk 0:02:59.9]}
5... Bc5 {[%clk 0:02:52.5]} 6. d3 {[%clk 0:02:33.3]} 6... O-O {[%clk 0:02:50.3]}
7. Nf3 {[%clk 0:02:28.4]} 7... Nxd5 {[%clk 0:02:44.3]} 8. cxd5 {[%clk
0:02:29.3]} 8... Nd4 {[%clk 0:02:42.7]} 9. Nd2 {[%clk 0:02:23]} 9... d6 {[%clk
0:02:30]} 10. e3 {[%clk 0:02:14.9]} 10... Nf5 {[%clk 0:02:29]} 11. Ne4 {[%clk
0:02:09.8]} 11... Bb6 {[%clk 0:02:24.1]} 12. O-O {[%clk 0:02:09.3]} 12... Ne7
{[%clk 0:02:22.1]} 13. Nc3 {[%clk 0:02:06.9]} 13... a5 {[%clk 0:02:19.8]} 14. b3
{[%clk 0:02:05.2]} 14... Ng6 {[%clk 0:02:16.8]} 15. Ne2 {[%clk 0:02:01.3]} 15...
Qg5 {[%clk 0:02:08.9]} 16. d4 {[%clk 0:01:57.8]} 16... Bg4 {[%clk 0:02:00.9]}
17. dxe5 {[%clk 0:01:54.2]} 17... Qxe5 {[%clk 0:01:58]} 18. Rb1 {[%clk
0:01:47.7]} 18... Qh5 {[%clk 0:01:55.1]} 19. Re1 {[%clk 0:01:40.9]} 19... Ne5
{[%clk 0:01:52.7]} 20. Bb2 {[%clk 0:01:36.6]} 20... Nf3+ {[%clk 0:01:50.3]} 21.
Bxf3 {[%clk 0:01:33]} 21... Bxf3 {[%clk 0:01:51.2]} 22. Qd2 {[%clk 0:01:21.1]}
22... Be4 {[%clk 0:01:42.7]} 23. Nc3 {[%clk 0:01:11.7]} 23... Bxb1 {[%clk
0:01:31.3]} 24. Rxb1 {[%clk 0:01:12.6]} 24... Rfe8 {[%clk 0:01:31.8]} 25. Ne2
{[%clk 0:01:12.5]} 25... Qf3 {[%clk 0:01:25]} 26. Qc3 {[%clk 0:00:50.4]} 26...
f6 {[%clk 0:01:22.3]} 27. Nd4 {[%clk 0:00:42.6]} 27... Qxd5 {[%clk 0:01:20.6]}
28. Rd1 {[%clk 0:00:42.2]} 28... c5 {[%clk 0:01:18.2]} 0-1

[Event "*** Titled Tuesday Blitz"]
[Site "Chess.com"]
[Date "2021.03.02"]
[Round "8"]
[White "jefferyx"]
[Black "FairChess_on_YouTube"]
[Result "0-1"]
[WhiteElo "3014"]
[BlackElo "2969"]
[TimeControl "180+1"]
[EndTime "11:28:03 PST"]
[Termination "FairChess_on_YouTube won by resignation"]

1. e4 {[%clk 0:03:00.9]} 1... e5 {[%clk 0:02:59.1]} 2. Nf3 {[%clk 0:02:58.5]}
2... Nc6 {[%clk 0:02:59.6]} 3. Bc4 {[%clk 0:02:57.5]} 3... Bc5 {[%clk
0:02:59.1]} 4. c3 {[%clk 0:02:58.1]} 4... Nf6 {[%clk 0:02:59]} 5. d3 {[%clk
0:02:58.8]} 5... d6 {[%clk 0:02:57.6]} 6. O-O {[%clk 0:02:58.8]} 6... a6 {[%clk
0:02:57.8]} 7. a4 {[%clk 0:02:58.6]} 7... Ba7 {[%clk 0:02:57.9]} 8. b4 {[%clk
0:02:58.3]} 8... h6 {[%clk 0:02:56]} 9. Nbd2 {[%clk 0:02:58.3]} 9... g5 {[%clk
0:02:54.8]} 10. Nb3 {[%clk 0:02:58.4]} 10... g4 {[%clk 0:02:52.6]} 11. Ne1
{[%clk 0:02:58.6]} 11... h5 {[%clk 0:02:52.4]} 12. b5 {[%clk 0:02:59]} 12... Ne7
{[%clk 0:02:51.4]} 13. Be3 {[%clk 0:02:58.2]} 13... h4 {[%clk 0:02:43.3]} 14.
Nc2 {[%clk 0:02:58.3]} 14... Ng6 {[%clk 0:02:40.4]} 15. Bxa7 {[%clk 0:02:51.4]}
15... Rxa7 {[%clk 0:02:41.3]} 16. Ne3 {[%clk 0:02:52]} 16... Nh5 {[%clk
0:02:30.6]} 17. Nxg4 {[%clk 0:02:04.5]} 17... Qg5 {[%clk 0:02:28.5]} 18. h3
{[%clk 0:02:04.7]} 18... Ngf4 {[%clk 0:02:18.7]} 19. bxa6 {[%clk 0:01:59.9]}
19... bxa6 {[%clk 0:02:00.4]} 20. Na5 {[%clk 0:02:00]} 20... Bxg4 {[%clk
0:01:41.5]} 21. Qxg4 {[%clk 0:01:53.9]} 21... Rg8 {[%clk 0:01:40.2]} 22. Rab1
{[%clk 0:01:25.5]} 22... Qxg4 {[%clk 0:01:34.1]} 23. hxg4 {[%clk 0:01:26.4]}
23... Rxg4 {[%clk 0:01:34.1]} 24. Rb8+ {[%clk 0:01:27]} 24... Kd7 {[%clk
0:01:17.6]} 25. Bxf7 {[%clk 0:01:27.3]} 25... Rxg2+ {[%clk 0:01:00.1]} 26. Kh1
{[%clk 0:01:27.3]} 26... Nf6 {[%clk 0:01:00.7]} 27. Bd5 {[%clk 0:01:18.3]} 27...
Ng4 {[%clk 0:00:48.5]} 0-1